[Event "Titled Tuesday Blitz February 15 Late 2022"]
[White "Suarez Uriel, Adrian"]
[Black "Quirke, Jeffrey"]
[WhiteFideId "22230874"]
[BlackFideId "2013029"]
[WhiteElo "2316"]
[BlackElo "2189"]
[Result "1/2-1/2"]
[Round "04"]
[TimeControl "180+1"]
[Date "2022.02.16"]
[WhiteClock "0:01:30"]
[BlackClock "0:00:07"]

1. e4 {[%clk 0:03:00]}  c5 {[%clk 0:02:59]} 2. Ne2 {[%clk 0:03:00]}  e6 {[%clk 0:02:59]} 3. d4 {[%clk 0:02:59]}  cxd4 {[%clk 0:02:59]} 4. Nxd4 {[%clk 0:03:00]}  a6 {[%clk 0:02:59]} 5. Bd3 {[%clk 0:03:00]}  Bc5 {[%clk 0:02:58]} 6. Nb3 {[%clk 0:02:59]}  Ba7 {[%clk 0:02:58]} 7. O-O {[%clk 0:02:57]}  Nc6 {[%clk 0:02:54]} 8. Qg4 {[%clk 0:02:56]}  Qf6 {[%clk 0:02:53]} 9. Nc3 {[%clk 0:02:51]}  h5 {[%clk 0:02:46]} 10. Qg5 {[%clk 0:02:45]}  Qxg5 {[%clk 0:02:43]} 11. Bxg5 {[%clk 0:02:45]}  Nf6 {[%clk 0:02:34]} 12. Bxf6 {[%clk 0:02:42]}  gxf6 {[%clk 0:02:33]} 13. Rad1 {[%clk 0:02:41]}  b5 {[%clk 0:02:26]} 14. Rfe1 {[%clk 0:02:33]}  Bb7 {[%clk 0:02:24]} 15. Nd5 {[%clk 0:02:34]}  exd5 {[%clk 0:02:07]} 16. exd5+ {[%clk 0:02:33]}  Kf8 {[%clk 0:02:04]} 17. dxc6 {[%clk 0:02:33]}  Bxc6 {[%clk 0:02:05]} 18. Be4 {[%clk 0:02:32]}  Re8 {[%clk 0:01:32]} 19. Bxc6 {[%clk 0:02:29]}  dxc6 {[%clk 0:01:33]} 20. g3 {[%clk 0:02:27]}  c5 {[%clk 0:01:24]} 21. Kg2 {[%clk 0:02:25]}  c4 {[%clk 0:01:19]} 22. Na5 {[%clk 0:02:24]}  Rxe1 {[%clk 0:01:12]} 23. Rxe1 {[%clk 0:02:23]}  Kg7 {[%clk 0:01:09]} 24. Re7 {[%clk 0:02:22]}  Bc5 {[%clk 0:01:04]} 25. Rd7 {[%clk 0:02:19]}  Re8 {[%clk 0:01:00]} 26. Nb7 {[%clk 0:02:17]}  Bf8 {[%clk 0:00:57]} 27. Kf3 {[%clk 0:02:15]}  Re1 {[%clk 0:00:48]} 28. Nd8 {[%clk 0:02:16]}  Re7 {[%clk 0:00:46]} 29. Rxe7 {[%clk 0:02:15]}  Bxe7 {[%clk 0:00:46]} 30. Nc6 {[%clk 0:02:16]}  Bc5 {[%clk 0:00:42]} 31. b3 {[%clk 0:02:16]}  cxb3 {[%clk 0:00:41]} 32. cxb3 {[%clk 0:02:15]}  f5 {[%clk 0:00:35]} 33. Nb8 {[%clk 0:02:15]}  a5 {[%clk 0:00:35]} 34. a4 {[%clk 0:02:12]}  bxa4 {[%clk 0:00:34]} 35. bxa4 {[%clk 0:02:13]}  Bb4 {[%clk 0:00:27]} 36. Kf4 {[%clk 0:02:13]}  Kf6 {[%clk 0:00:24]} 37. Nc6 {[%clk 0:02:11]}  Be1 {[%clk 0:00:22]} 38. Kf3 {[%clk 0:02:09]}  Ke6 {[%clk 0:00:21]} 39. Ke2 {[%clk 0:02:08]}  Bb4 {[%clk 0:00:19]} 40. Kd3 {[%clk 0:01:55]}  Kd5 {[%clk 0:00:19]} 41. Nd8 {[%clk 0:01:55]}  Be1 {[%clk 0:00:13]} 42. f3 {[%clk 0:01:53]}  Kc5 {[%clk 0:00:12]} 43. Nxf7 {[%clk 0:01:51]}  Kb4 {[%clk 0:00:12]} 44. Nd6 {[%clk 0:01:51]}  Kxa4 {[%clk 0:00:12]} 45. Kc4 {[%clk 0:01:51]}  Ka3 {[%clk 0:00:11]} 46. Nxf5 {[%clk 0:01:50]}  a4 {[%clk 0:00:09]} 47. Kb5 {[%clk 0:01:42]}  Kb3 {[%clk 0:00:08]} 48. Nd4+ {[%clk 0:01:42]}  Kc3 {[%clk 0:00:08]} 49. Ne2+ {[%clk 0:01:39]}  Kd2 {[%clk 0:00:08]} 50. Nd4 {[%clk 0:01:36]}  a3 {[%clk 0:00:08]} 51. f4 {[%clk 0:01:36]}  a2 {[%clk 0:00:08]} 52. Nb3+ {[%clk 0:01:36]}  Ke3 {[%clk 0:00:08]} 53. f5 {[%clk 0:01:34]}  Bc3 {[%clk 0:00:08]} 54. Kc4 {[%clk 0:01:33]}  a1=Q {[%clk 0:00:07]} 55. Nxa1 {[%clk 0:01:33]}  Bxa1 {[%clk 0:00:08]} 56. Kd5 {[%clk 0:01:32]}  Kf3 {[%clk 0:00:08]} 57. Ke6 {[%clk 0:01:28]}  Kg2 {[%clk 0:00:09]} 58. Kf7 {[%clk 0:01:27]}  Kxh2 {[%clk 0:00:08]} 59. Kg6 {[%clk 0:01:28]}  Kxg3 {[%clk 0:00:09]} 60. Kxh5 {[%clk 0:01:29]}  Kf4 {[%clk 0:00:09]} 61. Kg6 {[%clk 0:01:30]}  Bb2 {[%clk 0:00:08]} 62. f6 {[%clk 0:01:30]}  Bxf6 {[%clk 0:00:07]} 1/2-1/2


[Site "https://www.chess.com"]

[Event "Titled Tuesday Blitz February 15 Late 2022"]
[White "Szpar, Milosz"]
[Black "Kim, Sergey"]
[WhiteFideId "1184989"]
[BlackFideId "13700570"]
[WhiteElo "2447"]
[BlackElo "2599"]
[Result "0-1"]
[Round "04"]
[TimeControl "180+1"]
[Date "2022.02.16"]
[WhiteClock "0:01:22"]
[BlackClock "0:00:14"]

1. c4 {[%clk 0:03:00]}  Nf6 {[%clk 0:02:59]} 2. Nf3 {[%clk 0:03:01]}  g6 {[%clk 0:02:59]} 3. Nc3 {[%clk 0:03:01]}  Bg7 {[%clk 0:02:59]} 4. e4 {[%clk 0:03:02]}  d6 {[%clk 0:03:00]} 5. d4 {[%clk 0:03:03]}  O-O {[%clk 0:03:00]} 6. h3 {[%clk 0:03:04]}  e5 {[%clk 0:03:00]} 7. d5 {[%clk 0:03:04]}  a5 {[%clk 0:03:00]} 8. g4 {[%clk 0:03:05]}  Na6 {[%clk 0:03:00]} 9. Be3 {[%clk 0:03:05]}  Nc5 {[%clk 0:03:00]} 10. Nd2 {[%clk 0:03:05]}  Bd7 {[%clk 0:02:59]} 11. b3 {[%clk 0:03:05]}  c6 {[%clk 0:02:59]} 12. Be2 {[%clk 0:03:04]}  Rc8 {[%clk 0:02:58]} 13. h4 {[%clk 0:02:59]}  Ne8 {[%clk 0:02:54]} 14. g5 {[%clk 0:02:55]}  Nc7 {[%clk 0:02:53]} 15. Nf1 {[%clk 0:02:53]}  cxd5 {[%clk 0:02:52]} 16. exd5 {[%clk 0:02:53]}  e4 {[%clk 0:02:28]} 17. Bd4 {[%clk 0:02:51]}  N7a6 {[%clk 0:02:20]} 18. Bxg7 {[%clk 0:02:50]}  Kxg7 {[%clk 0:02:20]} 19. Qd4+ {[%clk 0:02:51]}  Kg8 {[%clk 0:02:20]} 20. Ng3 {[%clk 0:02:50]}  Nb4 {[%clk 0:02:13]} 21. Kd2 {[%clk 0:02:50]}  Bf5 {[%clk 0:02:03]} 22. h5 {[%clk 0:02:45]}  Qxg5+ {[%clk 0:02:00]} 23. Qe3 {[%clk 0:02:44]}  Qf6 {[%clk 0:01:51]} 24. hxg6 {[%clk 0:02:43]}  fxg6 {[%clk 0:01:49]} 25. Rag1 {[%clk 0:02:43]}  Rc7 {[%clk 0:01:41]} 26. Rh2 {[%clk 0:02:33]}  Rg7 {[%clk 0:01:28]} 27. Rhg2 {[%clk 0:02:31]}  Kh8 {[%clk 0:01:04]} 28. Nh5 {[%clk 0:02:28]}  Qe5 {[%clk 0:01:01]} 29. Nxg7 {[%clk 0:02:28]}  Qxg7 {[%clk 0:01:02]} 30. Bd1 {[%clk 0:02:15]}  Nbd3 {[%clk 0:00:55]} 31. Rh1 {[%clk 0:02:12]}  Rf7 {[%clk 0:00:44]} 32. Rgh2 {[%clk 0:02:10]}  Qe5 {[%clk 0:00:41]} 33. Qg5 {[%clk 0:02:03]}  Kg8 {[%clk 0:00:28]} 34. Be2 {[%clk 0:01:46]}  Nf4 {[%clk 0:00:21]} 35. Nd1 {[%clk 0:01:32]}  e3+ {[%clk 0:00:19]} 36. Ke1 {[%clk 0:01:28]}  exf2+ {[%clk 0:00:17]} 37. Rxf2 {[%clk 0:01:28]}  Nfd3+ {[%clk 0:00:15]} 38. Kf1 {[%clk 0:01:27]}  Nxf2 {[%clk 0:00:15]} 39. Nxf2 {[%clk 0:01:27]}  Ne4 {[%clk 0:00:14]} 40. Qg2 {[%clk 0:01:21]}  Ng3+ {[%clk 0:00:14]} 41. Kg1 {[%clk 0:01:20]}  Nxe2+ {[%clk 0:00:14]} 42. Kf1 {[%clk 0:01:21]}  Ng3+ {[%clk 0:00:14]} 43. Kg1 {[%clk 0:01:22]}  Nxh1 {[%clk 0:00:14]} 44. Nxh1 {[%clk 0:01:22]}  Be4 {[%clk 0:00:14]} 0-1


[Site "https://www.chess.com"]

[Event "Titled Tuesday Blitz February 15 Late 2022"]
[White "Villegas, Pierre"]
[Black "volunteers1998"]
[WhiteFideId "654183"]
[WhiteElo "2410"]
[BlackElo "2270"]
[Result "1-0"]
[Round "04"]
[TimeControl "180+1"]
[Date "2022.02.16"]
[WhiteClock "0:00:06"]
[BlackClock "0:00:02"]

1. d4 {[%clk 0:03:00]}  f5 {[%clk 0:02:59]} 2. Bg5 {[%clk 0:02:56]}  h6 {[%clk 0:02:59]} 3. Bh4 {[%clk 0:02:57]}  c5 {[%clk 0:02:57]} 4. e3 {[%clk 0:02:47]}  Qb6 {[%clk 0:02:54]} 5. Nc3 {[%clk 0:02:38]}  cxd4 {[%clk 0:02:52]} 6. exd4 {[%clk 0:02:34]}  Qe6+ {[%clk 0:02:50]} 7. Be2 {[%clk 0:02:20]}  g5 {[%clk 0:02:49]} 8. d5 {[%clk 0:02:19]}  Qb6 {[%clk 0:02:31]} 9. Qd2 {[%clk 0:01:48]}  gxh4 {[%clk 0:02:28]} 10. Bh5+ {[%clk 0:01:46]}  Kd8 {[%clk 0:02:25]} 11. O-O-O {[%clk 0:01:46]}  Nf6 {[%clk 0:02:22]} 12. Bf3 {[%clk 0:01:47]}  d6 {[%clk 0:02:13]} 13. Nge2 {[%clk 0:01:47]}  Nbd7 {[%clk 0:02:09]} 14. Nd4 {[%clk 0:01:41]}  Ne5 {[%clk 0:02:06]} 15. Be2 {[%clk 0:01:41]}  Bd7 {[%clk 0:01:57]} 16. f4 {[%clk 0:01:41]}  Ng6 {[%clk 0:01:38]} 17. Qe3 {[%clk 0:01:31]}  Rc8 {[%clk 0:01:33]} 18. Bd3 {[%clk 0:01:18]}  Kc7 {[%clk 0:01:23]} 19. Be2 {[%clk 0:00:40]}  Kb8 {[%clk 0:01:21]} 20. Bf3 {[%clk 0:00:41]}  h5 {[%clk 0:01:17]} 21. h3 {[%clk 0:00:38]}  Nxf4 {[%clk 0:01:14]} 22. Kb1 {[%clk 0:00:31]}  Rxc3 {[%clk 0:01:09]} 23. Qxc3 {[%clk 0:00:30]}  Bg7 {[%clk 0:01:01]} 24. Qd2 {[%clk 0:00:23]}  N4xd5 {[%clk 0:00:56]} 25. c4 {[%clk 0:00:23]}  Nb4 {[%clk 0:00:46]} 26. Qg5 {[%clk 0:00:19]}  Rg8 {[%clk 0:00:43]} 27. Qxh4 {[%clk 0:00:16]}  e5 {[%clk 0:00:34]} 28. Nb3 {[%clk 0:00:16]}  Ne4 {[%clk 0:00:31]} 29. Bxe4 {[%clk 0:00:14]}  fxe4 {[%clk 0:00:30]} 30. Qxe4 {[%clk 0:00:14]}  Rf8 {[%clk 0:00:27]} 31. Rhf1 {[%clk 0:00:13]}  Rxf1 {[%clk 0:00:23]} 32. Rxf1 {[%clk 0:00:14]}  Qc6 {[%clk 0:00:20]} 33. Qg6 {[%clk 0:00:08]}  a6 {[%clk 0:00:12]} 34. a3 {[%clk 0:00:06]}  Qxc4 {[%clk 0:00:08]} 35. Rc1 {[%clk 0:00:04]}  Qd3+ {[%clk 0:00:06]} 36. Qxd3 {[%clk 0:00:04]}  Nxd3 {[%clk 0:00:06]} 37. Rf1 {[%clk 0:00:05]}  e4 {[%clk 0:00:06]} 38. Rf7 {[%clk 0:00:05]}  Bxb2 {[%clk 0:00:05]} 39. Rxd7 {[%clk 0:00:05]}  Bxa3 {[%clk 0:00:05]} 40. Nd4 {[%clk 0:00:04]}  Bc5 {[%clk 0:00:05]} 41. Nf5 {[%clk 0:00:04]}  e3 {[%clk 0:00:03]} 42. Rd8+ {[%clk 0:00:04]}  Ka7 {[%clk 0:00:03]} 43. Re8 {[%clk 0:00:05]}  d5 {[%clk 0:00:02]} 44. Nxe3 {[%clk 0:00:05]}  Bd4 {[%clk 0:00:03]} 45. Nc2 {[%clk 0:00:05]}  Bf6 {[%clk 0:00:02]} 46. g4 {[%clk 0:00:04]}  hxg4 {[%clk 0:00:02]} 47. hxg4 {[%clk 0:00:05]}  Bg5 {[%clk 0:00:02]} 48. Rg8 {[%clk 0:00:04]}  Bf6 {[%clk 0:00:01]} 49. g5 {[%clk 0:00:04]}  Bc3 {[%clk 0:00:01]} 50. g6 {[%clk 0:00:04]}  a5 {[%clk 0:00:02]} 51. g7 {[%clk 0:00:05]}  b5 {[%clk 0:00:02]} 52. Ra8+ {[%clk 0:00:04]}  Kxa8 {[%clk 0:00:02]} 53. g8=Q+ {[%clk 0:00:05]}  Kb7 {[%clk 0:00:02]} 54. Qxd5+ {[%clk 0:00:06]} 1-0


[Site "https://www.chess.com"]

[Event "Titled Tuesday Blitz February 15 Late 2022"]
[White "Wan, Joseph"]
[Black "Fiorito, Fabian"]
[WhiteFideId "2069890"]
[BlackFideId "100200"]
[WhiteElo "2149"]
[BlackElo "2395"]
[Result "1-0"]
[Round "04"]
[TimeControl "180+1"]
[Date "2022.02.16"]
[WhiteClock "0:00:56"]
[BlackClock "0:01:28"]

1. d4 {[%clk 0:03:00]}  d5 {[%clk 0:03:00]} 2. Bf4 {[%clk 0:03:01]}  Nf6 {[%clk 0:03:00]} 3. e3 {[%clk 0:03:00]}  c5 {[%clk 0:03:01]} 4. Nf3 {[%clk 0:02:58]}  Nc6 {[%clk 0:03:01]} 5. Nbd2 {[%clk 0:02:59]}  cxd4 {[%clk 0:03:01]} 6. exd4 {[%clk 0:02:59]}  a6 {[%clk 0:03:01]} 7. Bd3 {[%clk 0:02:57]}  Nb4 {[%clk 0:03:01]} 8. Be2 {[%clk 0:02:57]}  Bf5 {[%clk 0:03:02]} 9. O-O {[%clk 0:02:38]}  Nxc2 {[%clk 0:02:59]} 10. Rc1 {[%clk 0:02:38]}  Nb4 {[%clk 0:02:58]} 11. a3 {[%clk 0:02:38]}  Nc6 {[%clk 0:02:58]} 12. Ne5 {[%clk 0:02:38]}  Rc8 {[%clk 0:02:48]} 13. Nxc6 {[%clk 0:02:26]}  Rxc6 {[%clk 0:02:46]} 14. Rxc6 {[%clk 0:02:26]}  bxc6 {[%clk 0:02:47]} 15. Bxa6 {[%clk 0:02:26]}  Qb6 {[%clk 0:02:48]} 16. Qa4 {[%clk 0:02:26]}  e6 {[%clk 0:02:42]} 17. Rc1 {[%clk 0:02:19]}  Qxb2 {[%clk 0:02:19]} 18. Qxc6+ {[%clk 0:01:42]}  Nd7 {[%clk 0:02:18]} 19. Bc8 {[%clk 0:01:38]}  e5 {[%clk 0:02:14]} 20. dxe5 {[%clk 0:01:38]}  Bxa3 {[%clk 0:02:11]} 21. Re1 {[%clk 0:01:15]}  Be6 {[%clk 0:01:48]} 22. Bxd7+ {[%clk 0:01:11]}  Bxd7 {[%clk 0:01:47]} 23. Qa8+ {[%clk 0:01:10]}  Ke7 {[%clk 0:01:41]} 24. Qxh8 {[%clk 0:01:08]}  Bb4 {[%clk 0:01:35]} 25. Bg5+ {[%clk 0:01:06]}  Ke6 {[%clk 0:01:30]} 26. Qxg7 {[%clk 0:01:04]}  Be8 {[%clk 0:01:30]} 27. Qf6+ {[%clk 0:01:01]}  Kd7 {[%clk 0:01:31]} 28. Qd8+ {[%clk 0:01:02]}  Ke6 {[%clk 0:01:29]} 29. Qxe8+ {[%clk 0:01:02]}  Kf5 {[%clk 0:01:30]} 30. Qxf7+ {[%clk 0:00:59]}  Kxg5 {[%clk 0:01:30]} 31. Nf3+ {[%clk 0:00:58]}  Kg4 {[%clk 0:01:28]} 32. h3# {[%clk 0:00:56]} 1-0


[Site "https://www.chess.com"]

[Event "Titled Tuesday Blitz February 15 Late 2022"]
[White "Weetik, Vjacheslav"]
[Black "Balint, Vilmos"]
[WhiteFideId "4153472"]
[BlackFideId "718050"]
[WhiteElo "2469"]
[BlackElo "2059"]
[Result "1-0"]
[Round "04"]
[TimeControl "180+1"]
[Date "2022.02.16"]
[WhiteClock "0:00:31"]
[BlackClock "0:01:33"]

1. d4 {[%clk 0:02:59]}  f5 {[%clk 0:02:59]} 2. g3 {[%clk 0:02:59]}  Nf6 {[%clk 0:03:00]} 3. Bg2 {[%clk 0:02:59]}  g6 {[%clk 0:03:00]} 4. c3 {[%clk 0:03:00]}  Bg7 {[%clk 0:03:01]} 5. Qb3 {[%clk 0:03:00]}  e6 {[%clk 0:03:00]} 6. Nd2 {[%clk 0:02:58]}  Nc6 {[%clk 0:02:55]} 7. Nh3 {[%clk 0:02:58]}  O-O {[%clk 0:02:55]} 8. Nf4 {[%clk 0:02:58]}  g5 {[%clk 0:02:50]} 9. Nd3 {[%clk 0:02:56]}  d6 {[%clk 0:02:49]} 10. h4 {[%clk 0:01:55]}  g4 {[%clk 0:02:34]} 11. e4 {[%clk 0:01:44]}  Kh8 {[%clk 0:02:23]} 12. O-O {[%clk 0:01:38]}  Nh5 {[%clk 0:02:17]} 13. exf5 {[%clk 0:01:30]}  exf5 {[%clk 0:02:16]} 14. Nc4 {[%clk 0:01:30]}  f4 {[%clk 0:02:07]} 15. Bxf4 {[%clk 0:01:02]}  Nxf4 {[%clk 0:02:03]} 16. Nxf4 {[%clk 0:01:02]}  Rxf4 {[%clk 0:02:03]} 17. gxf4 {[%clk 0:01:03]}  Qxh4 {[%clk 0:02:03]} 18. Rfe1 {[%clk 0:00:56]}  Bd7 {[%clk 0:02:03]} 19. Qxb7 {[%clk 0:00:51]}  Rb8 {[%clk 0:01:53]} 20. Qxc7 {[%clk 0:00:51]}  g3 {[%clk 0:01:36]} 21. fxg3 {[%clk 0:00:39]}  Qxg3 {[%clk 0:01:36]} 22. Qxd7 {[%clk 0:00:34]}  Nxd4 {[%clk 0:01:33]} 23. Re8+ {[%clk 0:00:31]} 1-0


[Site "https://www.chess.com"]

[Event "Titled Tuesday Blitz February 15 Late 2022"]
[White "Yang, Kaiqi"]
[Black "Kraus, Tomas"]
[WhiteFideId "8604398"]
[BlackFideId "331708"]
[WhiteElo "2373"]
[BlackElo "2389"]
[Result "1-0"]
[Round "04"]
[TimeControl "180+1"]
[Date "2022.02.16"]
[WhiteClock "0:00:05"]
[BlackClock "0:00:01"]

1. c4 {[%clk 0:03:00]}  e5 {[%clk 0:02:59]} 2. g3 {[%clk 0:02:59]}  c6 {[%clk 0:02:59]} 3. Nf3 {[%clk 0:02:57]}  e4 {[%clk 0:02:52]} 4. Nd4 {[%clk 0:02:57]}  Qb6 {[%clk 0:02:52]} 5. Nc2 {[%clk 0:02:45]}  Nf6 {[%clk 0:02:49]} 6. Nc3 {[%clk 0:02:43]}  d5 {[%clk 0:02:41]} 7. cxd5 {[%clk 0:02:42]}  cxd5 {[%clk 0:02:42]} 8. d3 {[%clk 0:02:32]}  Bc5 {[%clk 0:02:21]} 9. d4 {[%clk 0:02:27]}  Bd6 {[%clk 0:02:20]} 10. Rb1 {[%clk 0:02:11]}  O-O {[%clk 0:02:16]} 11. Bg5 {[%clk 0:02:11]}  Nbd7 {[%clk 0:02:15]} 12. Bh3 {[%clk 0:02:04]}  h6 {[%clk 0:02:07]} 13. Bf4 {[%clk 0:01:53]}  Bxf4 {[%clk 0:01:44]} 14. gxf4 {[%clk 0:01:54]}  Qd6 {[%clk 0:01:44]} 15. e3 {[%clk 0:01:52]}  Nb6 {[%clk 0:01:45]} 16. Bf1 {[%clk 0:01:25]}  Bg4 {[%clk 0:01:41]} 17. Qd2 {[%clk 0:01:25]}  a6 {[%clk 0:01:36]} 18. Rg1 {[%clk 0:01:24]}  Rac8 {[%clk 0:01:30]} 19. h3 {[%clk 0:01:14]}  Bh5 {[%clk 0:01:29]} 20. Rg3 {[%clk 0:01:12]}  Nc4 {[%clk 0:01:18]} 21. Bxc4 {[%clk 0:01:12]}  Rxc4 {[%clk 0:01:18]} 22. Kf1 {[%clk 0:01:04]}  Rfc8 {[%clk 0:01:16]} 23. Kg2 {[%clk 0:01:03]}  Bf3+ {[%clk 0:01:12]} 24. Kh2 {[%clk 0:01:02]}  Nh5 {[%clk 0:01:12]} 25. Rgg1 {[%clk 0:00:56]}  b5 {[%clk 0:01:09]} 26. a3 {[%clk 0:00:52]}  Qd7 {[%clk 0:00:43]} 27. Ne1 {[%clk 0:00:47]}  a5 {[%clk 0:00:26]} 28. Nxf3 {[%clk 0:00:46]}  exf3 {[%clk 0:00:27]} 29. Qd1 {[%clk 0:00:20]}  b4 {[%clk 0:00:18]} 30. axb4 {[%clk 0:00:21]}  axb4 {[%clk 0:00:18]} 31. Qxf3 {[%clk 0:00:21]}  Nxf4 {[%clk 0:00:15]} 32. Qxf4 {[%clk 0:00:19]}  bxc3 {[%clk 0:00:15]} 33. bxc3 {[%clk 0:00:19]}  Kh7 {[%clk 0:00:12]} 34. Rg3 {[%clk 0:00:13]}  Rxc3 {[%clk 0:00:11]} 35. Rbg1 {[%clk 0:00:14]}  g6 {[%clk 0:00:11]} 36. Rg4 {[%clk 0:00:09]}  R3c6 {[%clk 0:00:10]} 37. Rh4 {[%clk 0:00:09]}  h5 {[%clk 0:00:09]} 38. Rg5 {[%clk 0:00:08]}  Qc7 {[%clk 0:00:06]} 39. Qxc7 {[%clk 0:00:08]}  R8xc7 {[%clk 0:00:06]} 40. Rf4 {[%clk 0:00:07]}  Rc2 {[%clk 0:00:06]} 41. h4 {[%clk 0:00:07]}  Rd7 {[%clk 0:00:06]} 42. Rg2 {[%clk 0:00:06]}  Kg7 {[%clk 0:00:06]} 43. Kg3 {[%clk 0:00:07]}  f5 {[%clk 0:00:06]} 44. Kf3 {[%clk 0:00:07]}  Kf6 {[%clk 0:00:05]} 45. Rg1 {[%clk 0:00:07]}  Rb7 {[%clk 0:00:05]} 46. Ra1 {[%clk 0:00:06]}  Rbb2 {[%clk 0:00:04]} 47. Kg3 {[%clk 0:00:06]}  Rb6 {[%clk 0:00:03]} 48. Kg2 {[%clk 0:00:04]}  Rbb2 {[%clk 0:00:03]} 49. Rf3 {[%clk 0:00:04]}  Rb6 {[%clk 0:00:03]} 50. Ra7 {[%clk 0:00:04]}  Rd6 {[%clk 0:00:03]} 51. Rb7 {[%clk 0:00:03]}  Ra2 {[%clk 0:00:03]} 52. Rg3 {[%clk 0:00:03]}  Rc2 {[%clk 0:00:02]} 53. Kf3 {[%clk 0:00:03]}  Rd2 {[%clk 0:00:03]} 54. Rg1 {[%clk 0:00:03]}  Rc2 {[%clk 0:00:02]} 55. Ra1 {[%clk 0:00:03]}  Rcc6 {[%clk 0:00:01]} 56. Raa7 {[%clk 0:00:03]}  Ke6 {[%clk 0:00:01]} 57. Re7+ {[%clk 0:00:04]}  Kf6 {[%clk 0:00:01]} 58. Rf7+ {[%clk 0:00:04]}  Ke6 {[%clk 0:00:01]} 59. Rae7# {[%clk 0:00:05]} 1-0


[Site "https://www.chess.com"]

[Event "Titled Tuesday Blitz February 15 Late 2022"]
[White "Yedidia, Daniel"]
[Black "Moral Garcia, Serafin"]
[WhiteFideId "30905907"]
[BlackFideId "2201925"]
[WhiteElo "2487"]
[BlackElo "2228"]
[Result "1-0"]
[Round "04"]
[TimeControl "180+1"]
[Date "2022.02.16"]
[WhiteClock "0:01:29"]
[BlackClock "0:01:09"]

1. d4 {[%clk 0:03:00]}  Nf6 {[%clk 0:02:47]} 2. c4 {[%clk 0:02:59]}  c5 {[%clk 0:02:48]} 3. d5 {[%clk 0:02:57]}  e6 {[%clk 0:02:48]} 4. Nc3 {[%clk 0:02:57]}  exd5 {[%clk 0:02:48]} 5. cxd5 {[%clk 0:02:58]}  d6 {[%clk 0:02:49]} 6. e4 {[%clk 0:02:56]}  g6 {[%clk 0:02:48]} 7. f4 {[%clk 0:02:57]}  Bg7 {[%clk 0:02:48]} 8. Bb5+ {[%clk 0:02:55]}  Nfd7 {[%clk 0:02:49]} 9. a4 {[%clk 0:02:52]}  O-O {[%clk 0:02:48]} 10. Nf3 {[%clk 0:02:51]}  Na6 {[%clk 0:02:48]} 11. O-O {[%clk 0:02:51]}  Nb4 {[%clk 0:02:48]} 12. Re1 {[%clk 0:02:51]}  a6 {[%clk 0:02:47]} 13. Bf1 {[%clk 0:02:51]}  Re8 {[%clk 0:02:47]} 14. g3 {[%clk 0:02:50]}  f5 {[%clk 0:02:40]} 15. exf5 {[%clk 0:02:39]}  Rxe1 {[%clk 0:02:37]} 16. Qxe1 {[%clk 0:02:38]}  Nc2 {[%clk 0:02:31]} 17. Qe6+ {[%clk 0:02:36]}  Kh8 {[%clk 0:02:31]} 18. Ng5 {[%clk 0:02:31]}  Ne5 {[%clk 0:02:28]} 19. fxe5 {[%clk 0:02:18]}  Bxe6 {[%clk 0:02:26]} 20. dxe6 {[%clk 0:02:02]}  Nxa1 {[%clk 0:01:38]} 21. Nf7+ {[%clk 0:01:46]}  Kg8 {[%clk 0:01:38]} 22. Nxd8 {[%clk 0:01:46]}  Rxd8 {[%clk 0:01:24]} 23. f6 {[%clk 0:01:45]}  Bf8 {[%clk 0:01:10]} 24. Bc4 {[%clk 0:01:38]}  Kh8 {[%clk 0:01:09]} 25. e7 {[%clk 0:01:34]}  Bxe7 {[%clk 0:01:09]} 26. fxe7 {[%clk 0:01:33]}  Re8 {[%clk 0:01:09]} 27. Bg5 {[%clk 0:01:29]}  dxe5 {[%clk 0:01:09]} 28. Bf6# {[%clk 0:01:29]} 1-0


[Site "https://www.chess.com"]

[Event "Titled Tuesday Blitz February 15 Late 2022"]
[White "Yoo, Christopher Woojin"]
[Black "Wu, Christopher"]
[WhiteFideId "30909694"]
[BlackFideId "2040875"]
[WhiteElo "2105"]
[BlackElo "2668"]
[Result "1-0"]
[Round "04"]
[TimeControl "180+1"]
[Date "2022.02.15"]
[WhiteClock "0:00:13"]
[BlackClock "0:00:18"]

1. e4 {[%clk 0:03:00]}  c5 {[%clk 0:02:59]} 2. Nf3 {[%clk 0:03:00]}  Nc6 {[%clk 0:02:58]} 3. b4 {[%clk 0:02:59]}  cxb4 {[%clk 0:02:56]} 4. d4 {[%clk 0:02:57]}  d5 {[%clk 0:02:56]} 5. exd5 {[%clk 0:02:57]}  Qxd5 {[%clk 0:02:55]} 6. c4 {[%clk 0:02:58]}  bxc3 {[%clk 0:02:52]} 7. Nxc3 {[%clk 0:02:58]}  Qa5 {[%clk 0:02:52]} 8. d5 {[%clk 0:02:58]}  Qxc3+ {[%clk 0:02:39]} 9. Bd2 {[%clk 0:02:57]}  Qf6 {[%clk 0:02:38]} 10. dxc6 {[%clk 0:02:57]}  bxc6 {[%clk 0:02:37]} 11. Rc1 {[%clk 0:02:46]}  Bd7 {[%clk 0:02:31]} 12. Bd3 {[%clk 0:02:43]}  e6 {[%clk 0:02:25]} 13. O-O {[%clk 0:02:38]}  Ba3 {[%clk 0:02:17]} 14. Rc4 {[%clk 0:01:46]}  h5 {[%clk 0:01:33]} 15. Qa4 {[%clk 0:01:19]}  Bd6 {[%clk 0:01:30]} 16. Bc3 {[%clk 0:01:17]}  Qh6 {[%clk 0:01:20]} 17. Rb1 {[%clk 0:00:53]}  Ne7 {[%clk 0:01:11]} 18. Bd2 {[%clk 0:00:50]}  g5 {[%clk 0:01:03]} 19. Bxg5 {[%clk 0:00:50]}  Qg7 {[%clk 0:01:02]} 20. Bxe7 {[%clk 0:00:50]}  Bxe7 {[%clk 0:01:00]} 21. Be4 {[%clk 0:00:46]}  Rg8 {[%clk 0:00:52]} 22. g3 {[%clk 0:00:44]}  Rc8 {[%clk 0:00:46]} 23. Bxc6 {[%clk 0:00:38]}  Rxc6 {[%clk 0:00:34]} 24. Rxc6 {[%clk 0:00:36]}  Bd8 {[%clk 0:00:28]} 25. Rd1 {[%clk 0:00:26]}  Qg4 {[%clk 0:00:25]} 26. Qxg4 {[%clk 0:00:23]}  hxg4 {[%clk 0:00:24]} 27. Rcd6 {[%clk 0:00:23]}  gxf3 {[%clk 0:00:20]} 28. Rxd7 {[%clk 0:00:23]}  Bb6 {[%clk 0:00:21]} 29. R7d3 {[%clk 0:00:23]}  Rg4 {[%clk 0:00:20]} 30. Rxf3 {[%clk 0:00:23]}  Ra4 {[%clk 0:00:20]} 31. a3 {[%clk 0:00:23]}  Ke7 {[%clk 0:00:21]} 32. Rfd3 {[%clk 0:00:20]}  Bc5 {[%clk 0:00:21]} 33. Rc1 {[%clk 0:00:18]}  Bd6 {[%clk 0:00:20]} 34. Rb1 {[%clk 0:00:13]}  f5 {[%clk 0:00:18]} 35. Rb7+ {[%clk 0:00:13]} 1-0


[Site "https://www.chess.com"]